fUSD/lending_fUSD_20251223
["ID","MTS","AMOUNT","RATE_DAILY","PERIOD"]
[399595027,1766525777401,-381.45246426,0.00042771,2]
[399595028,1766525777411,-1050.12889905,0.00042771,2]
[399595029,1766525777421,-1196.4404348,0.00042771,2]
[399595030,1766525777432,-150.0,0.00042771,2]
[399595031,1766525777446,-7897.10180266,0.00042771,2]
[399595032,1766525777457,-1589.50272396,0.00042771,2]
[399595033,1766525777467,-636.89634998,0.00042771,2]
[399595034,1766525777479,-223.77167997,0.00042771,5]
[399595035,1766525777490,-218.34211907,0.00042771,2]
[399595036,1766525777500,-1084.51404922,0.00042771,2]
[399595037,1766525777511,-2500.0,0.00042771,2]
[399595038,1766525777521,-347.80925829,0.00042771,2]
[399595039,1766525777531,-1100.0,0.00042771,2]
[399595040,1766525777541,-927.39317136,0.00042771,2]
[399595041,1766525777552,-489.63450639,0.00042771,2]
[399595042,1766525777562,-15840.26172148,0.00042771,2]
[399595043,1766525777572,-1613.8686137,0.00042771,2]
[399595044,1766525777582,-1105.23410554,0.00042771,5]
[399595045,1766525777592,-557.48396731,0.00042771,2]
[399595046,1766525777603,-5087.91891693,0.00042771,2]
[399595047,1766525777614,-1028.70625713,0.00042771,2]
[399595048,1766525777624,-370.91964082,0.00042771,2]
[399595049,1766525777637,-2240.32622401,0.00042771,2]
[399595050,1766525777648,-15040.90891111,0.00042771,2]
[399595051,1766525777658,-1867.61684228,0.00042771,2]
[399595052,1766525777669,-1137.0380513,0.00042771,2]
[399595053,1766525777679,-409.35934143,0.00042771,2]
[399595054,1766525777689,-1507.63544434,0.00042771,2]
[399595055,1766525777699,-2479.76967213,0.00042771,2]
[399595056,1766525777709,-206.29891826,0.00042771,2]
[399595057,1766525777719,-878.02478451,0.00042771,2]
[399595058,1766525777729,-287.60823706,0.00042771,2]
[399595059,1766525777739,-5783.75204591,0.00042771,2]
[399595060,1766525777749,-2209.72388356,0.00042771,2]
[399595061,1766525777759,-468.43059584,0.00042771,2]
[399595062,1766525777770,-150.0,0.00042771,2]
[399595063,1766525777783,-160.0,0.00042771,2]
[399595064,1766525777793,-202.88576914,0.00042771,2]
[399595065,1766525777803,-755.35444494,0.00042771,2]
[399595066,1766525777813,-4266.0,0.00042771,2]
[399595067,1766525777825,-3361.10961638,0.00042771,2]
[399595068,1766525777835,-499.44965958,0.00042771,5]
[399595069,1766525777846,-205395.36382235,0.00042771,2]
[399595070,1766525777856,-675980.57192995,0.00042771,2]
[399595071,1766525777866,-28512.57946534,0.00042771,2]
[399595072,1766525777876,-49983.09552616,0.00042771,2]
[399595073,1766525777886,-23430.66369057,0.00042771,2]
[399595074,1766525777895,-510.10872342,0.00042771,2]
[399595075,1766525777905,-50000.0,0.00042771,7]
[399595076,1766525777914,-10580285.46822511,0.00042771,7]
[399595077,1766525777924,-10824.71380511,0.00042771,3]
[399595078,1766525777933,-15168.88387741,0.00042771,3]
[399595079,1766525777943,-226.9672029,0.00042771,2]
[399595080,1766525777953,-512.08222536,0.00042771,2]
[399595081,1766525777962,-50000.0,0.00042771,2]
[399595082,1766525777972,-19487.36798648,0.00042771,5]
[399595083,1766525777982,-25397.67080313,0.00042771,5]
[399595084,1766525777991,-198.23925335,0.00042771,2]
[399595085,1766525778001,-789.90083821,0.00042771,2]
[399595086,1766525778011,-637.19519369,0.00042771,6]
[399595087,1766525778031,-308.25109709,0.00042771,2]
[399595088,1766525778044,-158.17627198,0.00042771,2]
[399595089,1766525778055,-6776.67797608,0.00042771,7]
[399595090,1766525778064,-547.30129385,0.00042771,7]
[399595091,1766525778075,-442.22623011,0.00042771,7]
[399595092,1766525778084,-3833.14674457,0.00042771,7]
[399595093,1766525778094,-16384.26786582,0.00042771,7]
[399595094,1766525778104,-26233.73995966,0.00042771,7]
[399595095,1766525778114,-1067.77797885,0.00042771,7]
[399595096,1766525778123,-39860045.40972618,0.00042771,7]
[399595097,1766525779313,-860.86,0.00042771,7]
[399595098,1766525779327,-2731.44,0.00042771,7]
[399595099,1766525779339,-2589.34,0.00042771,7]
[399595100,1766525779361,-151.32829348,0.0001835,2]
[399595101,1766525779371,-37095.92404941,0.00042771,7]
[399595102,1766525779385,-321.88509748,0.00042771,7]
[399595103,1766525779397,-530.96381749,0.00042771,7]
[399595104,1766525779455,-29.53467556,0.00042771,7]
[399595105,1766525779470,-528210.18240759,0.00042771,7]
[399595106,1766525779586,-150.0,0.0002336,2]
[399595107,1766525779596,-341.52097155,0.000279,2]
[399595108,1766525779607,-151.0,0.00039,120]
[399595109,1766525779617,-151.0,0.00039,120]
[399595110,1766525779627,-166.63107603,0.000399,120]
[399595111,1766525779636,-258.44795242,0.00041502,30]
[399595112,1766525779648,-616.41039104,0.00041502,30]
[399595113,1766525779659,-7322.33,0.00041502,30]
[399595114,1766525779672,-10284.07401739,0.00041502,30]
[399595115,1766525779682,-26369.94029202,0.00042771,7]
[399595116,1766525779694,-8034.96227502,0.00042771,7]
[399595117,1766525779706,-521.11876182,0.00042771,7]
[399595118,1766525779717,-6403.69871666,0.00042771,7]
[399595119,1766525779729,-357.85910194,0.00042771,7]
[399595120,1766525779741,-684.39999965,0.00042771,7]
[399595121,1766525779752,-903.0,0.00042771,7]
[399595122,1766525779764,-515768.80029599,0.00042771,7]
[399595123,1766525779779,-2814.50681363,0.00042771,7]
[399595124,1766525779791,-5065.50956673,0.00042771,7]
[399595125,1766525779803,-356.15,0.00042771,7]
[399595126,1766525779954,-151.00000017,0.00015025,2]
[399595127,1766525780549,-848.99999983,0.00015025,2]
[399595128,1766525780578,-582.8459,0.00015025,2]
[399595129,1766525780992,500.0,0.00015024,2]
[399595130,1766525781025,500.0,0.00015024,2]
[399595131,1766525781074,500.0,0.00015024,2]
[399595132,1766525781112,500.0,0.00015024,2]
[399595133,1766525781148,500.0,0.00015024,2]
[399595134,1766525781198,500.0,0.00015024,2]
[399595135,1766525781236,459.02356599,0.00015024,2]
[399595136,1766525781290,500.0,0.00015024,2]
[399595137,1766525781332,500.0,0.00015024,2]
[399595138,1766525781366,500.0,0.00015024,2]
[399595139,1766525781402,500.0,0.00015024,2]
[399595140,1766525781443,500.0,0.00015024,2]
[399595141,1766525781485,500.0,0.00015024,2]
[399595142,1766525781521,500.0,0.00015024,2]
[399595143,1766525781556,177.29463435,0.00015024,2]
[399595144,1766525781583,322.70536565,0.00015024,2]
[399595145,1766525781618,202.71409891,0.00015024,2]
[399595146,1766525781652,500.0,0.00015024,2]
[399595147,1766525781691,500.0,0.00015024,2]
[399595148,1766525781726,500.0,0.00015024,2]
[399595149,1766525781763,500.0,0.00015024,2]
[399595150,1766525781801,500.0,0.00015024,2]
[399595151,1766525781837,500.0,0.00015024,2]
[399595152,1766525781877,500.0,0.00015024,2]
[399595153,1766525781912,500.0,0.00015024,2]
[399595154,1766525781950,500.0,0.00015024,2]
[399595155,1766525781988,500.0,0.00015024,2]
[399595156,1766525782027,500.0,0.00015024,2]
[399595157,1766525782351,311.12402817,0.00014925,2]
[399595158,1766525782416,500.0,0.00015024,2]
[399595159,1766525782456,500.0,0.00015024,2]
[399595160,1766525782498,351.76437128,0.00015024,2]
[399595161,1766525782573,190.313,0.00014724,2]
[399595162,1766525782659,424.65,0.00013699,2]
[399595164,1766525782793,160.176,0.00015173,2]
[399595165,1766525783029,1536.56313599,0.00014925,2]
[399595166,1766525783055,5699.69459524,0.00014925,2]
[399595167,1766525783146,4300.31540476,0.00015144,2]
[399595168,1766525783174,2935.94232639,0.00015144,2]
[399595169,1766525783269,500.0,0.00015024,2]
[399595170,1766525783309,351.76437129,0.00015024,2]
[399595171,1766525783355,300.0,0.00014924,2]
[399595172,1766525785038,5912.30330232,0.00015025,2]
[399595173,1766525785063,10000.01,0.00015025,2]
[399595174,1766525785088,10000.01,0.00015025,2]
[399595175,1766525785112,7588.97409768,0.00015025,2]
[399595176,1766525785163,336.15530719,0.00014925,2]
[399595177,1766525785240,500.0,0.00015024,2]
[399595178,1766525785280,351.76437129,0.00015024,2]
[399595179,1766525785596,343.2820287,0.00014925,2]
[399595180,1766525786439,500.0,0.00015024,2]
[399595181,1766525786477,351.76437129,0.00015024,2]
[399595182,1766525786513,28.06982385,0.00014924,2]
[399595183,1766525786538,121.93017615,0.00014924,2]
[399595184,1766525786569,300.0,0.00014924,2]
[399595185,1766525786769,1200.0,0.00014924,2]
[399595186,1766525787941,500.0,0.00015024,2]
[399595187,1766525787979,351.76437129,0.00015024,2]
[399595188,1766525788484,500.0,0.00015024,2]
[399595189,1766525788607,351.76437129,0.00015024,2]
[399595190,1766525790541,500.0,0.00015024,2]
[399595191,1766525790585,351.76437129,0.00015024,2]
[399595192,1766525791699,1500.0,0.00014757,2]
[399595193,1766525792144,500.0,0.00014925,2]
[399595194,1766525792518,1545.45626587,0.00015025,2]
[399595195,1766525793107,300.0,0.00014924,2]
[399595196,1766525793145,1200.0,0.00014923,2]
[399595197,1766525793302,500.0,0.00015024,2]
[399595198,1766525793344,277.33044411,0.00015024,2]
[399595199,1766525793376,74.43392718,0.00015024,2]
[399595200,1766525793448,500.0,0.00015173,2]
[399595201,1766525793580,250.42,0.00015024,2]
[399595202,1766525793668,9175.15607282,0.00014925,2]
[399595203,1766525793701,10000.01,0.00014925,2]
[399595204,1766525794397,10000.01,0.00014925,2]
[399595205,1766525794460,10000.01,0.00014925,2]
[399595206,1766525794493,10000.01,0.00014925,2]
[399595207,1766525794525,10000.01,0.00014925,2]
[399595208,1766525794557,10000.01,0.00014925,2]
[399595209,1766525794597,9363.02246663,0.00014925,2]
[399595210,1766525794630,162.5202423,0.00014925,2]
[399595211,1766525794664,1917.06550804,0.00014925,2]
[399595212,1766525795352,-1000.0,0.00014925,2]
[399595213,1766525796023,-177462.0,0.00014925,2]
[399595214,1766525799262,-500.0,0.00014924,2]
[399595215,1766525799302,-351.76437129,0.00014924,2]
[399595216,1766525800653,-217.66928511,0.00014924,2]
[399595217,1766525801016,-1090.61569456,0.00014925,2]
[399595218,1766525801041,-10000.01,0.00014925,2]
[399595219,1766525801060,-10000.01,0.00014925,2]
[399595220,1766525801531,-10000.01,0.00014925,2]
[399595221,1766525801630,-10000.01,0.00014925,2]
[399595222,1766525801721,-10000.01,0.00014925,2]
[399595223,1766525801840,-10000.01,0.00014925,2]
[399595224,1766525801948,-10000.01,0.00014925,2]
[399595225,1766525802076,-10000.01,0.00014925,2]
[399595226,1766525802215,-10000.01,0.00014925,2]
[399595227,1766525802337,-10000.01,0.00014925,2]
[399595228,1766525802455,-10000.01,0.00014925,2]
[399595229,1766525802578,-10000.01,0.00014925,2]
[399595230,1766525802677,-10000.01,0.00014925,2]
[399595231,1766525802783,-10000.01,0.00014925,2]
[399595232,1766525802942,-10000.01,0.00014925,2]
[399595233,1766525803074,-10000.01,0.00014925,2]
[399595234,1766525803236,-10000.01,0.00014925,2]
[399595239,1766525849875,-1226.16,0.0001477,2]
[399595240,1766525851959,-198.0,0.00014925,2]
[399595242,1766525860857,286.53590725,0.00014924,2]
[399595243,1766525860942,500.0,0.00014924,2]
[399595244,1766525861006,500.0,0.00014924,2]
[399595245,1766525861056,286.53590725,0.00014924,2]
[399595252,1766525887918,5974.6181855,7.945e-05,2]
[399595253,1766525887956,10000.01,7.945e-05,2]
[399595254,1766525888458,3573.6889465,7.945e-05,2]
[399595255,1766525888547,1200.0,0.00014924,2]
[399595256,1766525897396,500.0,0.00014924,2]
[399595257,1766525897707,500.0,0.00014924,2]
[399595258,1766525899659,1127.72063678,0.00014924,2]
[399595259,1766525899706,1127.72063678,0.00014924,2]
[399595260,1766525899749,1127.72063678,0.00014924,2]
[399595261,1766525899798,843.15914316,0.00014924,2]
[399595262,1766525899826,284.56149362,0.00014924,2]
[399595263,1766525899866,1127.72063678,0.00014924,2]
[399595264,1766525899909,1127.72063678,0.00014924,2]
[399595265,1766525899950,1127.72063678,0.00014924,2]
[399595266,1766525899992,1127.72063678,0.00014924,2]
[399595267,1766525900034,1127.72063678,0.00014924,2]
[399595268,1766525900075,1127.72063678,0.00014924,2]
[399595269,1766525900121,1127.72063678,0.00014924,2]
[399595270,1766525900163,1127.72063678,0.00014924,2]
[399595271,1766525900211,693.68341214,0.00014924,2]
[399595272,1766525900243,434.03722464,0.00014924,2]
[399595273,1766525900285,1127.72063678,0.00014924,2]
[399595274,1766525900327,1127.72063678,0.00014924,2]
[399595275,1766525900369,1127.72063678,0.00014924,2]
[399595276,1766525900412,1127.72063678,0.00014924,2]
[399595277,1766525900453,1127.72063678,0.00014924,2]
[399595278,1766525900503,1127.72063678,0.00014924,2]
[399595279,1766525900548,1127.72063678,0.00014924,2]
[399595280,1766525900592,1127.72063678,0.00014924,2]
[399595281,1766525900643,544.20768112,0.00014924,2]
[399595282,1766525900673,583.51295566,0.00014924,2]
[399595283,1766525900716,1127.72063678,0.00014924,2]
[399595284,1766525900757,1127.72063678,0.00014924,2]
[399595285,1766525901234,1127.72063678,0.00014924,2]
[399595286,1766525901282,1127.72063678,0.00014924,2]
[399595287,1766525901329,1127.72063678,0.00014924,2]
[399595288,1766525901374,1127.72063678,0.00014924,2]
[399595289,1766525901422,1127.72063678,0.00014924,2]
[399595290,1766525901476,1127.72063678,0.00014924,2]
[399595291,1766525901523,394.7319501,0.00014924,2]
[399595292,1766525901554,732.98868668,0.00014924,2]
[399595293,1766525901600,1127.72063678,0.00014924,2]
[399595294,1766525901644,1127.72063678,0.00014924,2]
[399595295,1766525901691,1127.72063678,0.00014924,2]
[399595296,1766525901738,1127.72063678,0.00014924,2]
[399595297,1766525901782,1127.72063678,0.00014924,2]
[399595298,1766525901833,1127.72063678,0.00014924,2]
[399595299,1766525901914,1127.72063678,0.00014924,2]
[399595300,1766525901960,1127.72063678,0.00014924,2]
[399595301,1766525902015,245.25621908,0.00014924,2]
[399595302,1766525902045,882.4644177,0.00014924,2]
[399595303,1766525902097,1127.72063678,0.00014924,2]
[399595304,1766525902146,1127.72063678,0.00014924,2]
[399595305,1766525902191,1127.72063678,0.00014924,2]
[399595306,1766525902236,1127.72063678,0.00014924,2]
[399595307,1766525902292,1127.72063678,0.00014924,2]
[399595308,1766525902350,1127.72063678,0.00014924,2]
[399595309,1766525902406,1127.72063678,0.00014924,2]
[399595312,1766525916211,454.68747491,0.00014924,2]
[399595313,1766525916304,500.0,0.00014924,2]
[399595314,1766525916351,542.65656533,0.00014924,2]
[399595315,1766525942644,150.0,0.00014924,2]
[399595319,1766525997650,500.0,0.00014924,2]
[399595320,1766525997706,500.0,0.00014924,2]
[399595321,1766525997765,500.0,0.00014924,2]
[399595322,1766525997818,642.87726221,0.00014924,2]
[399595323,1766526001195,300.0,0.00014924,2]
[399595324,1766526001235,1200.0,0.00014924,2]
[399595325,1766526018437,4709.78869755,0.00014825,2]
[399595326,1766526018474,2272.14688408,0.00014825,2]
[399595327,1766526061226,300.0,0.00014924,2]
[399595332,1766526094200,662.663,0.00014626,2]
[399595334,1766526121359,300.0,0.00014924,2]
[399595336,1766526122550,150.0,0.00014924,2]
[399595337,1766526125479,239.84119403,0.00014925,2]
[399595338,1766526131033,2377.03790392,0.00014825,2]
[399595339,1766526131790,-7374.14214281,0.00014925,2]
[399595340,1766526136602,-10000.01,0.00014925,2]
[399595341,1766526136623,-10000.01,0.00014925,2]
[399595342,1766526136728,-10000.01,0.00014925,2]
[399595343,1766526136759,-10000.01,0.00014925,2]
[399595344,1766526136806,-10000.01,0.00014925,2]
[399595345,1766526136880,-10000.01,0.00014925,2]
[399595346,1766526136928,-10000.01,0.00014925,2]
[399595347,1766526136955,-10000.01,0.00014925,2]
[399595348,1766526138719,-10000.01,0.00014925,2]
[399595349,1766526138865,-10000.01,0.00014925,2]
[399595350,1766526141964,-635.2050745,0.00014924,2]
[399595351,1766526142002,-635.2050745,0.00014924,2]
[399595352,1766526142039,-635.2050745,0.00014924,2]
[399595353,1766526142080,-635.2050745,0.00014924,2]
[399595354,1766526142120,-635.2050745,0.00014924,2]
[399595355,1766526142156,-635.2050745,0.00014924,2]
[399595356,1766526142192,-635.2050745,0.00014924,2]
[399595357,1766526142234,-471.9338825,0.00014924,2]
[399595358,1766526142469,-163.271192,0.00014924,2]
[399595359,1766526142507,-635.2050745,0.00014924,2]
[399595360,1766526142542,-635.2050745,0.00014924,2]
[399595361,1766526142578,-635.2050745,0.00014924,2]
[399595362,1766526142614,-635.2050745,0.00014924,2]
[399595363,1766526142651,-635.2050745,0.00014924,2]
[399595364,1766526142688,-635.2050745,0.00014924,2]
[399595365,1766526142724,-635.2050745,0.00014924,2]
[399595366,1766526142776,-145.3914985,0.00014924,2]
[399595367,1766526142915,-489.813576,0.00014924,2]
[399595368,1766526142952,-635.2050745,0.00014924,2]
[399595369,1766526142992,-635.2050745,0.00014924,2]
[399595370,1766526143029,-635.2050745,0.00014924,2]
[399595371,1766526143070,-635.2050745,0.00014924,2]
[399595372,1766526143108,-635.2050745,0.00014924,2]
[399595373,1766526143147,-635.2050745,0.00014924,2]
[399595374,1766526143185,-635.2050745,0.00014924,2]
[399595375,1766526143285,-635.2050745,0.00014924,2]
[399595376,1766526143322,-635.2050745,0.00014924,2]
[399595377,1766526143359,-635.2050745,0.00014924,2]
[399595378,1766526143396,-635.2050745,0.00014924,2]
[399595379,1766526143432,-635.2050745,0.00014924,2]
[399595380,1766526143469,-635.2050745,0.00014924,2]
[399595381,1766526143505,-635.2050745,0.00014924,2]
[399595382,1766526143541,-471.9338825,0.00014924,2]
[399595383,1766526143994,-163.271192,0.00014924,2]
[399595384,1766526144029,-635.2050745,0.00014924,2]
[399595385,1766526144065,-635.2050745,0.00014924,2]
[399595386,1766526144102,-635.2050745,0.00014924,2]
[399595387,1766526144138,-635.2050745,0.00014924,2]
[399595388,1766526144173,-635.2050745,0.00014924,2]
[399595389,1766526144209,-635.2050745,0.00014924,2]
[399595390,1766526144246,-635.2050745,0.00014924,2]
[399595391,1766526144284,-145.3914985,0.00014924,2]
[399595392,1766526145052,-163.271192,0.00014924,2]
[399595393,1766526145069,-326.542384,0.00014924,2]
[399595394,1766526145078,-308.6626905,0.00014924,2]
[399595395,1766526145094,-326.542384,0.00014924,2]
[399595396,1766526145104,-308.6626905,0.00014924,2]
[399595397,1766526145200,-326.542384,0.00014924,2]
[399595398,1766526145236,-635.2050745,0.00014924,2]
[399595399,1766526145273,-635.2050745,0.00014924,2]
[399595400,1766526145308,-635.2050745,0.00014924,2]
[399595401,1766526145344,-635.2050745,0.00014924,2]
[399595402,1766526145379,-635.2050745,0.00014924,2]
[399595403,1766526145414,-635.2050745,0.00014924,2]
[399595405,1766526162544,1120.95013147,0.00014924,2]
[399595406,1766526162588,603.51420653,0.00014924,2]
[399595407,1766526162618,517.43592494,0.00014924,2]
[399595408,1766526162666,1120.95013147,0.00014924,2]
[399595409,1766526162713,1120.95013147,0.00014924,2]
[399595410,1766526162758,1120.95013147,0.00014924,2]
[399595411,1766526162800,1120.95013147,0.00014924,2]
[399595412,1766526162848,1120.95013147,0.00014924,2]
[399595413,1766526162891,1120.95013147,0.00014924,2]
[399595414,1766526162942,1120.95013147,0.00014924,2]
[399595415,1766526162985,1120.95013147,0.00014924,2]
[399595416,1766526163033,514.9730233,0.00014924,2]
[399595417,1766526163064,605.97710817,0.00014924,2]
[399595418,1766526163108,1120.95013147,0.00014924,2]
[399595419,1766526163152,1120.95013147,0.00014924,2]
[399595420,1766526163201,1120.95013147,0.00014924,2]
[399595421,1766526163246,1120.95013147,0.00014924,2]
[399595422,1766526163292,1120.95013147,0.00014924,2]
[399595423,1766526163340,1120.95013147,0.00014924,2]
[399595424,1766526163383,1120.95013147,0.00014924,2]
[399595425,1766526163433,1120.95013147,0.00014924,2]
[399595426,1766526163481,426.43184007,0.00014924,2]
[399595427,1766526163510,694.5182914,0.00014924,2]
[399595428,1766526163554,1120.95013147,0.00014924,2]
[399595429,1766526163599,1120.95013147,0.00014924,2]
[399595430,1766526163640,1120.95013147,0.00014924,2]
[399595431,1766526163682,1120.95013147,0.00014924,2]
[399595432,1766526163724,1120.95013147,0.00014924,2]
[399595433,1766526163771,1120.95013147,0.00014924,2]
[399595443,1766526188535,1200.0,0.00014924,2]
[399595444,1766526198990,1379.79091978,0.00014924,2]
[399595445,1766526199015,1866.11904007,0.00014924,2]
[399595446,1766526199171,1622.99362326,0.00014924,2]
[399595447,1766526224318,319.19956057,0.00014825,2]
[399595448,1766526241504,300.0,0.00014924,2]
[399595449,1766526301159,300.0,0.00014924,2]
[399595450,1766526301198,1200.0,0.00014924,2]
[399595451,1766526302803,150.0,0.00014924,2]
[399595452,1766526320462,500.0,0.00014924,2]
[399595453,1766526320509,500.0,0.00014924,2]
[399595454,1766526320591,500.0,0.00014924,2]
[399595455,1766526320642,500.0,0.00014924,2]
[399595456,1766526320688,500.0,0.00014924,2]
[399595457,1766526320735,500.0,0.00014924,2]
[399595458,1766526320804,500.0,0.00014924,2]
[399595459,1766526320850,500.0,0.00014924,2]
[399595460,1766526320898,241.6977761,0.00014924,2]
[399595461,1766526320930,258.3022239,0.00014924,2]
[399595462,1766526320984,500.0,0.00014924,2]
[399595463,1766526321034,500.0,0.00014924,2]
[399595464,1766526321083,500.0,0.00014924,2]
[399595465,1766526321289,500.0,0.00014924,2]
[399595466,1766526321347,500.0,0.00014924,2]
[399595467,1766526321397,500.0,0.00014924,2]
[399595468,1766526321452,500.0,0.00014924,2]
[399595469,1766526321511,500.0,0.00014924,2]
[399595470,1766526321567,168.57658224,0.00014924,2]
[399595472,1766526364808,500.0,0.00014924,2]
[399595473,1766526364891,351.76437129,0.00014924,2]
[399595475,1766526382616,500.0,0.00014924,2]
[399595476,1766526382665,351.76437129,0.00014924,2]
[399595477,1766526391117,-2025.00475409,0.00014925,2]
[399595478,1766526391230,153.47017841,0.00014924,2]
[399595479,1766526392552,238.09747358,0.00014924,2]
[399595481,1766526413159,500.0,0.00014924,2]
[399595482,1766526418111,351.76437129,0.00014924,2]
[399595491,1766526451680,565.09366885,0.000176,30]
[399595505,1766526482606,150.0,0.00014924,2]
[399595508,1766526488761,1200.0,0.00014924,2]
[399595511,1766526499260,500.0,0.00014924,2]
[399595512,1766526499318,500.0,0.00014924,2]
[399595513,1766526499374,276.270428,0.00014924,2]
[399595514,1766526499405,223.729572,0.00014924,2]
[399595515,1766526499457,500.0,0.00014924,2]
[399595516,1766526499500,500.0,0.00014924,2]
[399595517,1766526499560,500.0,0.00014924,2]
[399595518,1766526499603,154.51744073,0.00014924,2]
[399595519,1766526515163,279.29961556,0.00014825,2]
[399595520,1766526520119,2139.33411351,0.00014825,2]
[399595521,1766526528722,5703.1292582,0.00014825,2]
[399595522,1766526528746,580.61276524,0.00014825,2]
[399595523,1766526534012,500.0,0.00014924,2]
[399595524,1766526534070,347.28140093,0.00014924,2]
[399595525,1766526541372,300.0,0.00014924,2]
[399595526,1766526565740,500.0,0.00014924,2]
[399595527,1766526565790,347.28140093,0.00014924,2]
[399595528,1766526604493,500.0,0.00014924,2]
[399595529,1766526604542,347.28140093,0.00014924,2]
[399595533,1766526628258,500.0,0.00014924,2]
[399595534,1766526628313,347.28140093,0.00014924,2]
[399595539,1766526631468,-2659.24584886,0.00014925,2]
[399595540,1766526631486,-1249.18479842,0.00014925,2]
[399595541,1766526631532,-1764.06570412,0.00014925,2]
[399595543,1766526631598,-271.54991355,0.00014925,2]
[399595544,1766526631610,-1251.37727158,0.00014925,2]
[399595545,1766526631623,-4972.64747185,0.00014925,2]
[399595546,1766526631635,-1998.50742485,0.00014925,2]
[399595547,1766526631649,-3712.49726896,0.00014925,2]
[399595549,1766526631661,-680.07227008,0.00014925,2]
[399595550,1766526631673,-296.40886238,0.00014925,2]
[399595551,1766526631685,-277.20013625,0.00014925,2]
[399595552,1766526631697,-3207.69999999,0.00014925,2]
[399595571,1766526637623,-2833.53678,0.00014925,2]
[399595578,1766526639573,-1244.52080482,0.00014925,2]
[399595579,1766526639586,-360.42425931,0.00014925,2]
[399595580,1766526639640,-29783.74906049,0.00014925,2]
[399595581,1766526639652,-5537.04231219,0.00014925,2]
[399595583,1766526639707,-852.46163084,0.00014925,2]
[399595584,1766526639720,-139688.4608577,0.00014925,2]
[399595585,1766526639731,-500.0,0.00014925,2]
[399595586,1766526639776,-1714.06444484,0.00014925,2]
[399595587,1766526639840,-255377.42599767,0.00014925,2]
[399595588,1766526639851,-250.0,0.00014925,2]
[399595589,1766526639862,-274.0,0.00014925,2]
[399595590,1766526639872,-500.0,0.00015124,2]
[399595591,1766526639883,-500.0,0.00015124,2]
[399595592,1766526639895,-500.0,0.00015124,2]
[399595593,1766526639905,-500.0,0.00015124,2]
[399595594,1766526639916,-500.0,0.00015173,2]
[399595595,1766526639927,-500.0,0.00015173,2]
[399595596,1766526639937,-200.0,0.00015173,2]
[399595597,1766526639948,-200.0,0.00015325,2]
[399595598,1766526639959,-500.0,0.00015721,2]
[399595599,1766526639969,-1000.0,0.00015721,2]
[399595600,1766526639979,-500.0,0.00015922,2]
[399595601,1766526639989,-255.0,0.00016043,2]
[399595602,1766526640000,-151.0,0.00016056,2]
[399595603,1766526640014,-151.0,0.00016057,2]
[399595604,1766526640028,-151.0,0.00016058,2]
[399595605,1766526640041,-151.0,0.00016058,2]
[399595606,1766526640051,-1474.9753679,0.00016268,2]
[399595607,1766526640061,-1200.0,0.00016335,2]
[399595608,1766526640072,-303.11653894,0.00016417,2]
[399595609,1766526640083,-250.0,0.00016417,2]
[399595610,1766526640094,-250.0,0.00016417,2]
[399595611,1766526640107,-500.0,0.00016438,2]
[399595612,1766526640117,-500.0,0.00016438,2]
[399595613,1766526640127,-500.0,0.00016438,2]
[399595614,1766526640138,-500.0,0.00016438,2]
[399595615,1766526640148,-426.09296783,0.00016438,2]
[399595616,1766526640158,-500.0,0.00016438,2]
[399595617,1766526640168,-500.0,0.00016438,2]
[399595618,1766526640183,-500.0,0.00016438,2]
[399595619,1766526640193,-500.0,0.00016438,2]
[399595620,1766526640204,-500.0,0.00016438,2]
[399595621,1766526640214,-1226.16,0.00016616,2]